{"text_format":"1","workbook":"xlsx","n_sheets":2,"sheets":["Welcome and Overview","NIMS Implementation"],"not_rendered":{"charts":0,"images":3,"macros":1,"external_links":0,"defined_names":0,"comments":0,"pivot_tables":0},"unopened":[],"bounds":{"document_bytes":16777216,"sheet_cells":100000,"rows_first":2000,"rows_last":500,"rows_between":2000,"halvings":0,"cell_chars":16384,"cell_head_chars":4096},"cells_cut":0,"cells_raw":0,"read":"whole","date_system":"1900"}

{"sheet":"Welcome and Overview","index":0,"n_rows":27,"n_cols":3,"rows_kept":27,"cut":false,"hidden":false,"merged":[[20,1,20,2],[22,1,26,1]]}
[]
[]
[]
[]
[]
[]
[]
[]
[]
[]
[]
[]
[]
[]
[]
[]
[]
[]
[]
[]
[null,"Jurisdiction Name"]
[]
[null,"Point of Contact","Name:"]
[null,null,"Title:"]
[null,null,"Organization:"]
[null,null,"E-mail address:"]
[null,null,"Phone number:"]

{"sheet":"NIMS Implementation","index":1,"n_rows":109,"n_cols":13,"rows_kept":109,"cut":false,"hidden":false,"merged":[[105,4,105,8],[86,4,86,8],[87,4,87,8],[88,4,88,8],[89,4,89,8],[104,4,104,8],[107,3,108,3],[107,4,108,8],[84,4,84,8],[85,4,85,8],[66,3,82,3],[66,4,66,8],[67,4,67,8],[68,4,68,8],[69,4,74,8],[75,4,75,8],[76,4,82,8],[84,3,91,3],[90,4,90,8],[93,3,102,3],[93,4,102,8],[104,3,105,3],[46,3,64,3],[46,4,46,8],[47,4,47,8],[48,4,48,8],[49,4,54,8],[55,4,55,8],[56,4,56,8],[57,4,57,8],[58,4,64,8],[27,3,35,3],[27,4,27,8],[28,6,33,8],[37,3,44,3],[37,4,37,8],[39,5,39,7],[39,8,43,8],[40,5,40,7],[41,5,41,7],[42,5,42,7],[43,5,43,7],[16,3,22,3],[16,4,16,8],[22,4,22,8],[24,4,24,8],[24,3,25,3],[25,4,25,8]]}
[]
[]
[]
[]
[]
[]
[]
[]
[]
[]
[]
[]
[]
[]
[null,null,null,null,null,null,null,"Percentage Complete:",{"$f":"SUM(L17,L25,L28,L38,L47,L56,L58,L67,L76,L85,L87,L89,L91,L94,L105,L108)/16","v":0},null,{"$f":"IF(AND(K25=\"Y\", K28=\"Y\", K38=\"Y\", K47=\"Y\", K56=\"Y\", K58=\"Y\", K67=\"Y\", K76=\"Y\", K85=\"Y\", K87=\"Y\", K89=\"Y\", K91=\"Y\", K94=\"Y\", K105=\"Y\", K108=\"Y\"), \"Y\", \"N\")","v":"N"}]
[]
[null,null,null,"Jurisdiction Type","1.a. Select your jurisdiction type:",null,null,null,null,null,{"$f":"IF(AND(K18>0,K18<4)=TRUE,\"Y\",IF(AND(K18=4,K22>0)=TRUE,\"Y\",\"N\"))","v":"N"},{"$f":"IF(K17=\"Y\", 1, 0)","v":0}]
[null,null,null,null,"Tribal Nation:",null,null,null,null,null,0]
[null,null,null,null,"County/Parish/Township/Borough:"]
[null,null,null,null,"City/Urban Area:"]
[null,null,null,null,"Other:"]
[null,null,null,null,null,null,"If you marked “Other,” please explain:",null,null,null,0,null,""]
[null,null,null,null,"1.b. If all components of your jurisdiction are not accounted for, please explain:",null,null,null,null,null,0,null,""]
[]
[null,null,null,"NIMS Adoption","2. Has your jurisdiction formally adopted and/or maintained adoption of the National Incident Management System as your all-hazards incident management system for Fiscal Year (FY) 2014?",null,null,null,null,null,{"$f":"IF(K26>0,\"Y\",\"N\")","v":"N"},{"$f":"IF(K25=\"Y\", 1, 0)","v":0}]
[null,null,null,null,null,null,null,null,null,null,0]
[]
[null,null,null,"Plans","3. Has your jurisdiction reviewed and revised the following types of plans to incorporate NIMS components, principles, and policies? ",null,null,null,null,null,{"$f":"IF(AND(K29<>0, K30<>0, K31<>0, K32<>0, K33<>0, K34<>0,K35<>0), \"Y\", \"N\")","v":"N"},{"$f":"IF(K28=\"Y\", 1, 0)","v":0}]
[null,null,null,null,"Emergency Operations Plans",null,null,null,null,null,0]
[null,null,null,null,"Standard Operating Procedures",null,null,null,null,null,0]
[null,null,null,null,"Standard Operating Guidelines",null,null,null,null,null,0]
[null,null,null,null,"All Hazard Plan",null,null,null,null,null,0]
[null,null,null,null,"Mitigation Plan",null,null,null,null,null,0]
[null,null,null,null,"Training Plan",null,null,null,null,null,0]
[null,null,null,null,"Continuity Plan",null,null,null,null,null,0]
[]
[]
[null,null,null,"Mutual Aid","4. Has your jurisdiction established (and/or have in development) the following types of mutual aid agreements, compacts, and/or assistance agreements?  ",null,null,null,null,null,{"$f":"IF(AND(K41<>0, K42<>0, K43<>0, K44<>0, L41<>0, L42<>0,L43<>0, L44<>0), \"Y\", \"N\")","v":"N"},{"$f":"IF(K38=\"Y\", 1, 0)","v":0}]
[]
[null,null,null,null,"Intrastate Agreements","Interagency and Interstate Agreements"]
[null,null,null,null,"Throughout the State/Territory?","Throughout the jurisdiction?",null,null,null,null,0,0]
[null,null,null,null,"That incude the Private Sector?","That include the Private Sector?",null,null,null,null,0,0]
[null,null,null,null,"That include NGOs?","That include NGOs?",null,null,null,null,0,0]
[null,null,null,null,"That include Tribal Nations?","That include Tribal Nations?",null,null,null,null,0,0]
[]
[]
[null,null,null,"NIMS Training","5a. Have NIMS concepts and principles been incorporated into appropriate training within your jurisdiction?",null,null,null,null,null,{"$f":"IF(OR(AND(K48=1,L50>0), AND(K48=2, L50>0), K48=3), \"Y\", \"N\")","v":"N"},{"$f":"IF(K47=\"Y\", 1, 0)","v":0}]
[null,null,null,null,null,null,null,null,null,null,0]
[null,null,null,null,"5b.  If yes, which of the following has been incorporated?"]
[null,null,null,null,null,null,null,null,null,null,false,{"$f":"COUNTIF(K50:K55, \"TRUE\")","v":0}]
[null,null,null,null,null,null,null,null,null,null,false]
[null,null,null,null,null,null,null,null,null,null,false]
[null,null,null,null,null,null,null,null,null,null,false]
[null,null,null,null,null,null,null,null,null,null,false]
[null,null,null,null,null,null,null,null,null,null,false]
[null,null,null,null,"6. Has your jurisdiction implemented a training program to ensure that the appropriate emergency/incident response personnel, as identified in the NIMS Training Program, receive NIMS training in accordance with their incident management responsibilities?",null,null,null,null,null,{"$f":"IF(K57>0, \"Y\", \"N\")","v":"N"},{"$f":"IF(K56=\"Y\", 1, 0)","v":0}]
[null,null,null,null,null,null,null,null,null,null,0,0]
[null,null,null,null,"7. Which, if any, of the following are priorities for your jurisdiction to incorporate into training in the coming year? Please choose up to three options from the list below.",null,null,null,null,null,{"$f":"IF(OR(AND(L59=0, AND(K65=TRUE, L65=1)), AND(L59>0, AND(K65=FALSE, L65=0)), AND(L59>0, K65=TRUE, L65=1)), \"Y\", \"N\")","v":"N"},{"$f":"IF(K58=\"Y\", 1, 0)","v":0}]
[null,null,null,null,null,null,null,null,null,null,false,{"$f":"COUNTIF(K59:K64, \"TRUE\")","v":0}]
[null,null,null,null,null,null,null,null,null,null,false]
[null,null,null,null,null,null,null,null,null,null,false]
[null,null,null,null,null,null,null,null,null,null,false]
[null,null,null,null,null,null,null,null,null,null,false]
[null,null,null,null,null,null,null,null,null,null,false]
[null,null,null,null,null,null,null,null,null,null,false,0,""]
[]
[null,null,null,"Exercises","8.a. Have NIMS concepts and principles been incorporated into appropriate exercises within your jurisdiction?",null,null,null,null,null,{"$f":"IF(OR(AND(K68=1,L70>0), AND(K68=2, L70>0), K68=3), \"Y\", \"N\")","v":"N"},{"$f":"IF(K67=\"Y\", 1, 0)","v":0}]
[null,null,null,null,null,null,null,null,null,null,0]
[null,null,null,null,"8.b. If yes, which of the following has been incorporated?"]
[null,null,null,null,null,null,null,null,null,null,false,{"$f":"COUNTIF(K70:K75, TRUE)","v":0}]
[null,null,null,null,null,null,null,null,null,null,false]
[null,null,null,null,null,null,null,null,null,null,false]
[null,null,null,null,null,null,null,null,null,null,false]
[null,null,null,null,null,null,null,null,null,null,false]
[null,null,null,null,null,null,null,null,null,null,false,0]
[null,null,null,null,"9. Which, if any, of the following are priorities for your jurisdiction to incorporate into exercises in the coming year? Please choose up to three options from the list below.",null,null,null,null,null,{"$f":"IF(OR(AND(L77=0, AND(K83=TRUE, L83=1)), AND(L77>0, AND(K83=FALSE, L83=0)), AND(L77>0, K83=TRUE, L83=1)), \"Y\", \"N\")","v":"N"},{"$f":"IF(K76=\"Y\", 1, 0)","v":0}]
[null,null,null,null,null,null,null,null,null,null,false,{"$f":"COUNTIF(K77:K82, \"TRUE\")","v":0}]
[null,null,null,null,null,null,null,null,null,null,false]
[null,null,null,null,null,null,null,null,null,null,false]
[null,null,null,null,null,null,null,null,null,null,false]
[null,null,null,null,null,null,null,null,null,null,false]
[null,null,null,null,null,null,null,null,null,null,false]
[null,null,null,null,null,null,null,null,null,null,false,0,""]
[]
[null,null,null,"Resource Inventory","10. Does your jurisdiction maintain an inventory of its response resources and assets? ",null,null,null,null,null,{"$f":"IF(K86>0, \"Y\", \"N\")","v":"N"},{"$f":"IF(K85=\"Y\", 1, 0)","v":0}]
[null,null,null,null,null,null,null,null,null,null,0]
[null,null,null,null,"11. Does your jurisdiction use an interoperable tool, such as the Incident Resource Inventory System (IRIS), to inventory response resources and assets?",null,null,null,null,null,{"$f":"IF(K88>0, \"Y\", \"N\")","v":"N"},{"$f":"IF(K87=\"Y\", 1, 0)","v":0}]
[null,null,null,null,null,null,null,null,null,null,0]
[null,null,null,null,"12. Has your jurisdiction typed and inventoried your response resources and assets consistently with available national NIMS resource typing definitions and job titles/position qualifications, available through the Resource Typing Library Tool at http://www.fema.gov/resource-management?",null,null,null,null,null,{"$f":"IF(K90>0, \"Y\", \"N\")","v":"N"},{"$f":"IF(K89=\"Y\", 1, 0)","v":0}]
[null,null,null,null,null,null,null,null,null,null,0]
[null,null,null,null,"13. Does your jurisdiction have a process to determine availability of response resources and assets in accordance with national NIMS resource typing definitions and job titles/position qualifications, available through the Resource Typing Library Tool at http://www.fema.gov/resource-management? ",null,null,null,null,null,{"$f":"IF(K92>0, \"Y\", \"N\")","v":"N"},{"$f":"IF(K91=\"Y\", 1, 0)","v":0}]
[null,null,null,null,null,null,null,null,null,null,0]
[]
[null,null,null,"NIMS Priorities","14. What priorities has your jurisdiction identified to enhance your implementation of NIMS in the coming year? Please check up to three.",null,null,null,null,null,{"$f":"IF(OR(AND(L95=0, AND(K103=TRUE, L103=1)), AND(L95>0, AND(K103=FALSE, L103=0)), AND(L95>0, K103=TRUE, L103=1)), \"Y\", \"N\")","v":"N"},{"$f":"IF(K94=\"Y\", 1, 0)","v":0}]
[null,null,null,null,null,null,null,null,null,null,false,{"$f":"COUNTIF(K95:K102, \"TRUE\")","v":0}]
[null,null,null,null,null,null,null,null,null,null,false]
[null,null,null,null,null,null,null,null,null,null,false]
[null,null,null,null,null,null,null,null,null,null,false]
[null,null,null,null,null,null,null,null,null,null,false]
[null,null,null,null,null,null,null,null,null,null,false]
[null,null,null,null,null,null,null,null,null,null,false]
[null,null,null,null,null,null,null,null,null,null,false]
[null,null,null,null,null,null,null,null,null,null,false,0,""]
[]
[null,null,null,"Re-entry Plan","15. Does your jurisdiction have an access and re-entry plan in order to control the flow of resources and personnel into the area of an incident?",null,null,null,null,null,{"$f":"IF(K106>0, \"Y\", \"N\")","v":"N"},{"$f":"IF(K105=\"Y\", 1, 0)","v":0}]
[null,null,null,null,null,null,null,null,null,null,0]
[]
[null,null,null,"Additional Needs","16. Please list any tools, training, guidance, or support that would be helpful in further enhancing your jurisdiction’s implementation of NIMS:",null,null,null,null,null,{"$f":"IF(K109=1, \"Y\", \"N\")","v":"N"},{"$f":"IF(K108=\"Y\", 1, 0)","v":0}]
[null,null,null,null,null,null,null,null,null,null,0,null,""]